bitfinex/quotes_ETHUSD_20241022
["timestamp","ask_amount","ask_price","bid_price","bid_amount"]
[1729599724372,3.79198,2637.2,2637.0,1.37539877]
[1729599724767,3.79204,2637.1,2637.0,1.37539877]
[1729599725366,3.79204,2637.1,2637.0,0.7553]
[1729599725569,3.79218,2637.0,2636.9,3.78799296]
[1729599725930,3.79218,2637.0,2636.9,1.0]
[1729599726887,6.24577477,2637.0,2636.9,1.0]
[1729599727098,7.90346954,2637.0,2636.9,1.0]
[1729599727459,10.90346954,2637.0,2636.9,1.0]
[1729599727987,3.79261,2636.7,2636.6,0.01891288]
[1729599728200,3.79348,2636.1,2636.0,0.1281652]
[1729599728489,5.45117477,2636.1,2636.0,0.1281652]
[1729599730362,7.50225792,2636.1,2636.0,0.1281652]
[1729599732296,10.50225792,2636.1,2636.0,0.1281652]
[1729599732587,11.26305792,2636.1,2636.0,0.1281652]
[1729599733008,3.7608,2636.0,2635.5,0.01891288]
[1729599733206,3.79535,2634.8,2634.7,0.7929]
[1729599733692,3.79535,2634.8,2634.7,0.12625825]
[1729599733851,3.79558,2634.7,2634.4,0.7929]
[1729599734201,3.70877792,2634.9,2634.4,0.7929]
[1729599734367,3.79566,2634.6,2634.4,0.7929]
[1729599734553,7.59139,2634.6,2634.4,0.7929]
[1729599734761,3.79566,2634.6,2634.4,0.7929]
[1729599734977,3.79543,2634.8,2634.4,0.7929]
[1729599734978,3.79552,2634.7,2634.4,0.7929]
[1729599735194,3.79564,2634.6,2634.4,0.7929]
[1729599735597,3.79543,2634.8,2634.4,0.7929]
[1729599736156,3.79543,2634.8,2634.4,1.251808]
[1729599736356,3.79515,2635.0,2634.4,1.251808]
[1729599736758,7.46427792,2635.3,2634.4,1.251808]
[1729599736954,7.46427792,2635.3,2634.5,3.79571]
[1729599736955,3.79489,2635.2,2634.5,3.79571]
[1729599737259,3.79486,2635.2,2634.4,0.7929]
[1729599737460,3.795,2635.1,2634.4,4.5888]
[1729599737761,3.79514,2635.0,2634.4,0.7929]
[1729599737924,3.79546,2634.8,2634.4,0.7929]
[1729599738209,3.79546,2634.8,2634.0,3.79643]
[1729599738210,3.79591,2634.5,2634.1,0.07591453]
[1729599738506,3.79559,2634.7,2634.1,0.68337767]
[1729599739430,3.79583,2634.5,2634.1,0.07591453]
[1729599739605,3.79583,2634.5,2634.0,0.83631962]
[1729599739767,3.79578,2634.6,2634.0,0.83631962]
[1729599739971,3.79578,2634.6,2634.0,0.7604]
[1729599740176,3.79587,2634.5,2634.1,0.07591962]
[1729599740509,3.79587,2634.5,2634.0,0.83631965]
[1729599740875,3.79578,2634.6,2634.0,0.7604]
[1729599740876,3.79593,2634.4,2634.0,0.7604]
[1729599741583,3.79608,2634.3,2634.0,0.7604]
[1729599741687,3.79593,2634.4,2634.0,0.7604]
[1729599742326,3.79607,2634.3,2634.0,0.7604]
[1729599742627,3.79593,2634.4,2634.0,0.7604]
[1729599743008,7.50449792,2634.6,2634.0,0.7604]
[1729599743219,3.79572,2634.6,2634.0,0.7604]
[1729599743410,3.79572,2634.6,2634.0,4.55687]
[1729599743614,3.79553,2634.7,2634.0,9.79930232]
[1729599743837,3.79549,2634.7,2634.1,3.79636]
[1729599744423,7.55095,2634.8,2634.1,3.79636]
[1729599744626,3.79564,2634.6,2634.2,0.12924161]
[1729599744831,7.59136,2634.6,2634.2,0.12924161]
[1729599745125,3.79564,2634.6,2634.0,9.79924886]
[1729599745311,3.79564,2634.6,2634.3,0.12916514]
[1729599745516,3.79564,2634.6,2634.0,4.55677]
[1729599745829,7.50441792,2634.6,2634.4,0.12908867]
[1729599746122,3.7958,2634.5,2634.0,4.63275129]
[1729599746692,3.79596,2634.4,2634.0,0.83632129]
[1729599746882,11.30079792,2634.4,2634.0,0.7604]
[1729599747087,3.79596,2634.4,2634.0,0.7604]
[1729599747507,3.79579,2634.5,2634.0,0.7604]
[1729599747813,3.79594,2634.4,2634.0,0.7604]
[1729599748397,3.79608,2634.3,2633.9,1.50184546]
[1729599748729,3.79608,2634.3,2633.9,5.29848546]
[1729599749524,3.79589,2634.5,2633.9,5.29848546]
[1729599749731,3.79597,2634.4,2633.9,5.29848546]
[1729599750041,3.79571,2634.6,2634.1,3.79636]
[1729599750330,3.79585,2634.5,2634.2,0.7796]
[1729599750837,3.79571,2634.6,2634.2,0.7796]
[1729599750838,3.79595,2634.4,2634.2,0.7796]
[1729599750989,3.79582,2634.5,2634.2,0.7796]
[1729599751832,3.79582,2634.5,2634.0,4.56229]
[1729599752046,3.79521,2634.9,2634.2,0.46518715]
[1729599752205,3.79535,2634.8,2634.1,4.56208]
[1729599752410,3.79594,2634.4,2634.1,0.7658]
[1729599753646,3.79615,2634.3,2634.1,0.7658]
[1729599753941,3.79594,2634.4,2633.9,2.29674546]
[1729599754097,3.79608,2634.3,2633.9,2.29674546]
[1729599754296,3.79573,2634.6,2633.9,2.91008301]
[1729599754641,3.79507,2635.0,2634.5,3.79571]
[1729599754809,3.79503,2635.1,2634.5,4.59258]
[1729599755008,3.79513,2635.0,2634.5,4.59258]
[1729599755230,3.79513,2635.0,2634.5,4.66848567]
[1729599755540,3.79493,2635.1,2634.6,3.79555]
[1729599755834,3.79507,2635.0,2634.6,3.79555]
[1729599756045,3.7945,2635.4,2634.9,4.60244]
[1729599756339,3.79463,2635.3,2634.9,4.67833533]
[1729599757113,3.79463,2635.3,2634.9,0.8073]
[1729599758860,7.58947,2635.3,2634.9,0.88319557]
[1729599759053,3.79477,2635.2,2634.9,0.88319557]
[1729599759220,3.79477,2635.2,2634.9,0.8073]
[1729599759741,3.79477,2635.2,2635.0,0.1287817]
[1729599760060,3.79456,2635.4,2635.0,0.1287817]
[1729599760215,3.70877792,2636.0,2635.2,0.7697]
[1729599760216,3.79441,2635.5,2635.2,0.7697]
[1729599760650,3.79449,2635.4,2635.3,0.12855244]
[1729599761037,3.79463,2635.3,2635.2,0.7697]
[1729599762342,3.79488,2635.2,2634.8,0.7954]
[1729599762662,3.79479,2635.2,2634.9,0.07589532]
[1729599763138,3.79463,2635.3,2634.9,0.07589532]
[1729599763346,3.79493,2635.1,2634.9,0.07589532]
[1729599763529,3.79493,2635.1,2634.8,0.7954]
[1729599764158,3.79478,2635.2,2634.8,0.7954]
[1729599764346,3.79478,2635.2,2634.8,1.3004035]
[1729599764718,3.79495,2635.1,2634.8,0.7954]
[1729599766723,3.79478,2635.2,2634.8,0.7954]
[1729599766724,3.79514,2635.0,2634.8,0.7954]
[1729599767122,3.79578,2634.5,2634.2,2.75357997]
[1729599767357,4.46227792,2635.0,2634.1,0.7958]
[1729599767358,7.59227,2634.3,2634.1,0.7958]
[1729599767671,3.79621,2634.2,2634.1,0.7958]
[1729599768135,7.59222,2634.3,2634.1,0.7958]
[1729599768520,3.79621,2634.2,2634.1,0.7958]
[1729599769060,3.79636,2634.1,2633.9,2.33505834]
[1729599769364,3.79636,2634.1,2633.9,2.31614546]
[1729599770519,3.79636,2634.1,2633.9,5.06972543]
[1729599771055,3.79624,2634.2,2633.9,5.06972543]
[1729599771262,3.79607,2634.3,2633.9,5.06972543]
[1729599771451,3.79621,2634.2,2633.9,5.06972543]
[1729599771638,3.79621,2634.2,2634.0,2.75357997]
[1729599771840,3.796,2634.4,2634.1,2.75357997]
[1729599772024,3.796,2634.4,2634.2,2.77057707]
[1729599772363,3.796,2634.4,2634.3,2.77057707]
[1729599772668,3.796,2634.4,2634.2,2.77057707]
[1729599772836,3.796,2634.4,2634.1,3.25266634]
[1729599773261,3.79608,2634.3,2634.1,3.25266634]
[1729599773760,3.79608,2634.3,2634.1,0.28300442]
[1729599773968,3.79566,2634.6,2634.2,0.07592013]
[1729599774265,3.79588,2634.5,2634.2,0.28300442]
[1729599774557,3.79593,2634.4,2634.3,0.28300442]
[1729599774763,3.79607,2634.3,2634.1,1.09830442]
[1729599774927,3.79607,2634.3,2634.1,0.8153]
[1729599775127,3.79621,2634.2,2634.1,1.09830442]
[1729599775367,3.79621,2634.2,2634.1,0.8153]
[1729599775865,3.79607,2634.3,2634.1,0.8153]
[1729599776078,3.79607,2634.3,2634.1,1.09873428]
[1729599776439,3.79614,2634.3,2634.1,1.09873428]
[1729599776763,3.79621,2634.2,2634.1,0.8153]
[1729599776945,3.79621,2634.2,2634.1,1.09873428]
[1729599777258,3.79636,2634.1,2634.0,0.28343428]
[1729599777421,3.79636,2634.1,2634.0,0.28363091]
[1729599777929,3.79614,2634.3,2634.0,0.28363091]
[1729599778130,3.79614,2634.3,2633.9,6.19513175]
[1729599778430,3.79637,2634.1,2634.0,0.28363123]
[1729599779468,3.7965,2634.0,2633.9,5.39753175]
[1729599780641,3.7965,2634.0,2633.9,1.50184546]
[1729599782634,3.79665,2633.9,2633.8,0.03996]
[1729599782836,4.56815,2633.9,2633.8,0.03996]
[1729599783275,8.27692792,2633.9,2633.8,0.03996]
[1729599783576,11.28692792,2633.9,2633.8,0.03996]
[1729599783878,7.56815,2633.9,2633.8,0.03996]
[1729599786287,8.50967896,2633.9,2633.8,0.03996]
[1729599786659,7.95967896,2633.9,2633.8,0.03996]
[1729599787555,7.56815,2633.9,2633.8,0.03996]
[1729599792703,8.12815,2633.9,2633.8,0.03996]
[1729599792856,8.60307316,2633.9,2633.8,0.03996]
[1729599794177,6.79722,2633.5,2633.4,0.1281652]
[1729599794414,11.26869792,2633.5,2633.4,0.1281652]
[1729599794719,7.55992,2633.5,2633.4,0.1281652]
[1729599795118,11.26869792,2633.5,2633.4,0.1281652]
[1729599795331,8.10992,2633.5,2633.4,0.1281652]
[1729599795814,7.55992,2633.5,2633.4,0.1281652]
[1729599796117,8.10992,2633.5,2633.4,0.1281652]
[1729599799597,11.81869792,2633.5,2633.4,0.1281652]
[1729599799828,12.30362108,2633.5,2633.4,5.2e-06]
[1729599802419,11.82869792,2633.5,2633.4,5.2e-06]
[1729599804619,12.22076346,2633.5,2633.4,5.2e-06]
[1729599805100,8.50198554,2633.5,2633.4,5.2e-06]
[1729599805452,12.22076346,2633.5,2633.4,5.2e-06]
[1729599807211,12.69568662,2633.5,2633.4,5.2e-06]
[1729599808429,12.22076346,2633.5,2633.4,5.2e-06]
[1729599809766,7.95198554,2633.5,2633.4,5.2e-06]
[1729599810733,7.18928554,2633.5,2633.4,5.2e-06]
[1729599811030,4.18928554,2633.5,2633.4,0.7749052]
[1729599811222,3.79722,2633.5,2633.4,5.2e-06]
[1729599811420,3.79722,2633.5,2633.4,0.12761769]
[1729599811650,3.79722,2633.5,2633.4,5.2e-06]
[1729599811863,3.79722,2633.5,2633.4,0.12752904]
[1729599812060,3.79722,2633.5,2633.4,5.2e-06]
[1729599812247,3.79722,2633.5,2633.4,0.12752904]
[1729599812430,3.79659,2634.0,2633.5,0.7749]
[1729599812759,5.5,2634.5,2634.2,0.7715]
[1729599813015,5.51891288,2634.6,2634.5,0.7715]
[1729599813155,5.5,2634.6,2634.5,0.7715]
[1729599813354,5.5,2634.6,2634.5,0.89803477]
[1729599814793,5.5,2634.6,2634.5,1.36744225]
[1729599815696,5.5,2634.6,2634.5,0.89803477]
[1729599815901,9.29564,2634.6,2634.5,0.12653477]
[1729599816097,12.29564,2634.6,2634.5,0.12653477]
[1729599816394,12.29564,2634.6,2634.2,0.8101]
[1729599816395,3.79596,2634.4,2634.2,0.8101]
[1729599816600,6.79579,2634.5,2634.3,4.12544744]
[1729599816968,3.79593,2634.4,2634.3,4.12544744]
[1729599817157,10.59167,2634.5,2634.3,4.12544744]
[1729599817708,10.59167,2634.5,2634.3,0.12544744]
[1729599818055,3.79593,2634.4,2634.2,0.8101]
[1729599818499,3.0,2634.5,2634.3,0.12544744]
[1729599818698,3.79593,2634.4,2634.3,0.12544744]
[1729599818885,3.79593,2634.4,2634.2,0.8101]
[1729599819058,3.79593,2634.4,2634.3,0.12544744]
[1729599819402,3.79593,2634.4,2634.2,0.8101]
[1729599819608,3.79593,2634.4,2634.3,0.12544744]
[1729599819778,3.79593,2634.4,2634.2,0.8101]
[1729599820104,3.79593,2634.4,2634.3,0.12544744]
[1729599820532,3.79607,2634.3,2634.2,0.8101]
[1729599822052,10.5917,2634.5,2634.2,0.8101]
[1729599822209,10.59173,2634.5,2634.2,0.8101]
[1729599822403,6.79581,2634.5,2634.2,0.8101]
[1729599823633,10.59171,2634.5,2634.2,0.8101]
[1729599824236,6.79581,2634.5,2634.2,0.8101]
[1729599825043,3.796,2634.4,2634.2,0.8101]
[1729599827547,3.79607,2634.3,2634.2,0.8101]
[1729599828818,3.79623,2634.2,2633.9,0.7508]
[1729599829054,3.79565,2634.6,2633.9,0.7508]
[1729599829055,3.7965,2634.0,2633.9,0.7508]
[1729599830224,3.7965,2634.0,2633.9,0.87651541]
[1729599834246,3.7965,2634.0,2633.9,0.12571541]
[1729599834567,3.79693,2633.7,2633.6,0.7784]
[1729599834772,3.79693,2633.7,2633.6,0.90441238]
[1729599834933,3.79693,2633.7,2633.6,0.12601238]
[1729599835136,3.79722,2633.5,2633.4,0.8132052]
[1729599835372,3.79722,2633.5,2633.4,0.93940434]
[1729599836175,7.59427,2633.6,2633.4,0.93940434]
[1729599836659,7.59429,2633.6,2633.4,0.93940434]
[1729599837271,3.7971,2633.6,2633.4,0.93940434]
[1729599837474,7.59431,2633.6,2633.4,0.93940434]
[1729599837653,3.7971,2633.6,2633.4,0.93940434]
[1729599837851,7.59431,2633.6,2633.4,0.93940434]
[1729599838240,3.7971,2633.6,2633.4,0.93940434]
[1729599838547,3.79694,2633.7,2633.4,1.18352932]
[1729599839575,7.59399,2633.7,2633.4,1.18352932]
[1729599839778,3.79694,2633.7,2633.4,1.18352932]
[1729599840338,7.59399,2633.7,2633.4,1.18352932]
[1729599840735,3.79709,2633.6,2633.4,1.18352932]
[1729599841135,3.79715,2633.6,2633.4,1.18352932]
[1729599842057,3.79696,2633.7,2633.4,1.18352932]
[1729599842560,3.79709,2633.6,2633.4,1.18352932]
[1729599842936,3.79722,2633.5,2633.4,1.18352932]
[1729599843279,3.79722,2633.5,2633.4,0.93940434]
[1729599844789,3.79715,2633.6,2633.4,0.93940434]
[1729599846248,3.79722,2633.5,2633.4,0.93940434]
[1729599846477,3.79715,2633.6,2633.4,0.93940434]
[1729599847044,7.59435,2633.6,2633.4,0.93940434]
[1729599847252,3.79722,2633.5,2633.4,0.93940434]
[1729599848687,3.79708,2633.6,2633.4,0.93940434]
[1729599849183,3.79722,2633.5,2633.4,0.93940434]
[1729599851578,8.33835,2633.5,2633.4,0.12620434]
[1729599851778,8.33835,2633.5,2633.4,5.2e-06]
[1729599852954,8.88835,2633.5,2633.4,5.2e-06]
[1729599854185,9.28101636,2633.5,2633.4,5.2e-06]
[1729599854597,8.88835,2633.5,2633.4,5.2e-06]
[1729599861503,8.33835,2633.5,2633.4,5.2e-06]
[1729599867488,8.88835,2633.5,2633.4,5.2e-06]
[1729599867932,9.28053295,2633.5,2633.4,5.2e-06]
[1729599869276,12.98931087,2633.5,2633.4,5.2e-06]
[1729599869501,13.64035954,2633.5,2633.4,5.2e-06]
[1729599869696,13.64035954,2633.5,2632.2,0.7527]
[1729599869697,3.79894,2632.4,2632.2,0.7527]
[1729599869898,3.79894,2632.4,2632.2,1.12797]
[1729599870207,3.79895,2632.3,2632.2,1.12797]
[1729599877400,3.79895,2632.3,2632.2,0.7527]
[1729599879743,3.79895,2632.3,2632.2,0.88122692]
[1729599881022,3.79895,2632.3,2632.2,0.12852692]
[1729599881539,3.7991,2632.2,2632.1,3.0]
[1729599881716,8.54065611,2632.2,2632.1,3.0]
[1729599882620,8.54065611,2632.2,2632.1,1.10038]
[1729599882820,8.55065611,2632.2,2632.1,1e-05]
[1729599883032,9.50278278,2632.2,2632.1,1e-05]
[1729599883238,3.80054,2631.2,2631.1,0.7686]
[1729599883440,3.80054,2631.2,2631.1,0.89820197]
[1729599884527,3.80054,2631.2,2631.1,0.12960197]
[1729599884854,3.80042,2631.3,2631.1,0.12960197]
[1729599885867,3.80054,2631.2,2631.1,0.12960197]
[1729599886148,7.48007792,2631.8,2631.1,1.27677217]
[1729599886352,3.80051,2631.3,2631.1,0.88390197]
[1729599887338,3.80026,2631.4,2631.1,0.88390197]
[1729599887926,3.80054,2631.2,2631.1,0.88390197]
[1729599888334,7.50931792,2631.2,2631.1,0.12960197]
[1729599888516,7.50931792,2631.2,2631.0,3.0]
[1729599888517,3.80069,2631.1,2631.0,3.0]
[1729599888718,7.50931792,2631.2,2631.0,3.0]
[1729599888719,3.80054,2631.2,2631.0,3.0]
[1729599889127,3.0,2631.3,2631.0,3.0]
[1729599889329,6.80047,2631.3,2631.0,3.0]
[1729599889719,3.7999,2631.7,2631.1,0.7819]
[1729599890068,7.50797792,2632.2,2631.5,0.7819]
[1729599890214,0.01891288,2632.3,2631.5,0.7819]
[1729599890215,3.81789288,2632.3,2631.6,0.7819]
[1729599890416,7.50796792,2632.2,2631.7,0.7819]
[1729599890623,3.70877792,2632.2,2631.7,4.58165]
[1729599890850,7.50788792,2632.2,2631.7,5.240065]
[1729599891068,3.79932,2632.1,2631.7,4.7819]
[1729599891422,3.7994,2632.0,2631.7,4.7819]
[1729599892372,3.79919,2632.2,2631.8,0.8117]
[1729599892573,7.59838,2632.2,2631.8,0.8117]
[1729599892874,3.79906,2632.3,2631.8,0.8117]
[1729599893074,3.7991,2632.2,2631.8,0.8117]
[1729599893655,3.7991,2632.2,2631.8,4.8117]
[1729599894079,7.59831,2632.2,2631.8,4.8117]
[1729599894376,7.59833,2632.2,2631.8,4.8117]
[1729599894532,3.79925,2632.1,2631.8,4.8117]
[1729599894734,3.79925,2632.1,2631.9,0.12929303]
[1729599899580,3.79907,2632.3,2631.9,0.12929303]
[1729599899733,3.79907,2632.3,2632.0,0.8124]
[1729599900244,3.79907,2632.3,2632.1,0.12917783]
[1729599900642,3.7991,2632.2,2632.0,0.8124]
[1729599900848,3.70877792,2632.1,2632.0,0.8124]
[1729599901048,7.50801792,2632.1,2632.0,0.8124]
[1729599905939,3.79924,2632.1,2632.0,0.8124]
[1729599906167,3.79912,2632.2,2632.0,0.8124]
[1729599906351,7.59782,2632.4,2632.0,0.8124]
[1729599906566,3.0,2632.5,2632.0,1.273583]
[1729599906567,3.79918,2632.2,2632.0,1.273583]
[1729599906882,3.79918,2632.2,2632.0,0.8124]
[1729599907776,3.79893,2632.4,2632.0,0.8124]
[1729599907973,3.79897,2632.3,2632.0,0.8124]
[1729599908203,6.70877792,2632.5,2632.0,4.8124]
[1729599908204,3.0,2632.5,2632.0,4.8124]
[1729599908379,3.79835,2632.8,2632.3,0.814]
[1729599908590,3.7988,2632.5,2632.3,0.814]
[1729599908801,3.79873,2632.5,2632.3,0.814]
[1729599909325,3.79811,2632.9,2632.4,0.8302]
[1729599909617,3.79825,2632.8,2632.5,0.8302]
[1729599909778,3.79811,2632.9,2632.5,0.9587885]
[1729599910373,3.79789,2633.1,2632.5,4.7573985]
[1729599910614,3.79802,2633.0,2632.6,0.87573985]
[1729599911021,3.7981,2632.9,2632.6,1.00425178]
[1729599911715,3.79796,2633.0,2632.6,5.00425178]
[1729599911917,3.79796,2633.0,2632.7,1.28607273]
[1729599912076,3.79782,2633.1,2632.8,0.7904]
[1729599912271,3.79776,2633.2,2632.8,0.91875881]
[1729599912704,3.79776,2633.2,2632.8,4.91875881]
[1729599912909,3.79761,2633.3,2632.8,5.92862095]
[1729599913111,3.79786,2633.1,2632.8,5.92862095]
[1729599913802,3.81636288,2633.4,2632.8,5.92862095]
[1729599914004,3.79752,2633.3,2632.9,0.7822]
[1729599914220,3.79738,2633.4,2633.1,0.7822]
[1729599914624,3.7976,2633.3,2633.2,0.12805264]
[1729599915228,3.79737,2633.4,2633.2,4.12805264]
[1729599915397,3.79737,2633.4,2633.3,0.8217]
[1729599915808,3.79737,2633.4,2633.3,0.94967611]
[1729599916189,3.79737,2633.4,2633.3,4.94967611]
[1729599916425,3.70877792,2634.1,2633.3,5.44464372]
[1729599916730,3.79724,2633.5,2633.3,5.44464372]
[1729599916928,3.79724,2633.5,2633.3,4.94967611]
[1729599918031,3.79711,2633.6,2633.3,4.94967611]
[1729599918266,3.75950433,2633.6,2633.3,4.94967611]
[1729599918591,3.79702,2633.7,2633.3,4.94967611]
[1729599918796,3.79721,2633.6,2633.3,5.44464372]
[1729599919293,7.59378,2633.8,2633.3,5.44464372]
[1729599922441,3.79632,2634.2,2634.0,0.91167077]
[1729599922592,3.79632,2634.2,2634.0,4.91167077]
[1729599922790,3.79632,2634.2,2634.1,0.89875968]
[1729599922989,3.79632,2634.2,2634.1,1.02555397]
[1729599923236,3.79608,2634.3,2634.1,1.02555397]
[1729599923599,3.81864601,2634.5,2634.2,0.7875]
[1729599923796,3.81864601,2634.5,2634.2,0.99013316]
[1729599923797,3.79585,2634.5,2634.2,0.99013316]
[1729599924026,3.79574,2634.6,2634.3,0.58888928]
[1729599924224,3.79574,2634.6,2634.5,0.8302]
[1729599924832,3.79574,2634.6,2634.5,4.95668842]
[1729599928953,0.8008,2635.1,2634.5,4.95668842]
[1729599929105,3.79542,2634.8,2634.6,0.07590391]
[1729599929442,7.59089,2634.8,2634.6,4.0]
[1729599929650,7.59089,2634.8,2634.7,0.12491396]
[1729599930220,7.59089,2634.8,2634.7,4.12491396]
[1729599932052,7.59089,2634.8,2634.7,4.0914582]
[1729599933872,3.79542,2634.8,2634.7,4.0914582]
[1729599934036,3.79535,2634.8,2634.7,4.0914582]
[1729599940751,3.79535,2634.8,2634.7,4.0914582]
[1729599945141,3.79535,2634.8,2634.7,0.0914582]
[1729599945543,3.79522,2634.9,2634.5,0.8302]
[1729599945748,3.79564,2634.6,2634.5,0.8302]
[1729599952556,3.79564,2634.6,2634.5,1.1968098]
[1729599952762,3.79564,2634.6,2634.5,0.8302]
[1729599953864,3.79552,2634.7,2634.5,0.8302]
[1729599954051,3.79563,2634.7,2634.5,0.8302]
[1729599954765,3.79563,2634.7,2634.6,0.09143222]
[1729599954935,1.66097792,2634.8,2634.6,0.16733725]
[1729599955135,5.45635792,2634.8,2634.6,0.54405337]
[1729599956414,3.79538,2634.8,2634.6,0.54405337]
[1729599956963,3.79549,2634.7,2634.6,0.46814834]
[1729599957173,5.45646792,2634.7,2634.6,0.09143222]
[1729599957584,3.79578,2634.6,2634.3,3.55432395]
[1729599957785,5.45675792,2634.6,2634.3,3.55432395]
[1729599958385,3.79567,2634.6,2634.3,3.55432395]
[1729599958571,3.79567,2634.6,2634.3,3.83741884]
[1729599958777,5.45664792,2634.6,2634.4,0.76336288]
[1729599959084,3.79578,2634.5,2634.4,3.81608172]
[1729599959286,3.79578,2634.5,2634.4,1.04645777]
[1729599959454,5.45663792,2634.6,2634.4,0.76336288]
[1729599959658,5.45663792,2634.6,2634.4,0.28336433]
[1729599960055,5.45663792,2634.6,2634.3,3.83768828]
[1729599960387,5.45663792,2634.6,2634.4,0.28336433]
[1729599960591,9.25237792,2634.6,2634.4,0.28336433]
[1729599960761,1.66097792,2634.5,2634.4,0.28336433]
[1729599960948,5.45663792,2634.6,2634.4,0.28336433]
[1729599961143,5.45663792,2634.6,2634.5,0.28336433]
[1729599961661,5.45663792,2634.6,2634.4,0.28336433]
[1729599961863,5.45663792,2634.6,2634.3,3.56257247]
[1729599962061,5.45675792,2634.5,2634.4,0.73587825]
[1729599962265,5.45675792,2634.5,2634.4,0.28358323]
[1729599962477,1.66097792,2634.5,2634.4,0.28358323]
[1729599963198,5.45649792,2634.7,2634.4,0.28358323]
[1729599963350,3.79564,2634.6,2634.5,0.28358323]
[1729599966567,1.66097792,2634.6,2634.5,0.28358323]
[1729599968123,5.45661792,2634.6,2634.5,0.28358323]
[1729599969618,1.66097792,2634.6,2634.5,0.28475572]
[1729599969804,1.66097792,2634.6,2634.5,0.37622942]
[1729599973411,1.66097792,2634.6,2634.5,0.0914737]
[1729599973776,0.7934,2634.5,2634.1,6.57409247]
[1729599974004,1.66097792,2634.2,2634.1,6.57409247]
[1729599974328,1.66097792,2634.2,2634.1,1.26290179]
[1729599976795,1.66097792,2634.2,2634.0,2.7907427]
[1729599976994,1.66097792,2634.1,2633.9,5.04918816]
[1729599977200,1.66097792,2634.1,2633.9,2.25844546]
[1729599977500,1.66097792,2634.1,2633.9,8.84582816]
[1729599977696,1.66097792,2634.1,2634.0,1.29165018]
[1729599980319,1.66097792,2634.1,2633.9,2.25844546]
[1729599980526,1.66097792,2634.0,2633.9,2.25844546]
[1729599981206,1.66097792,2634.1,2633.9,6.05507546]
[1729599981407,1.66097792,2634.1,2633.9,2.25844546]
[1729599982332,1.66097792,2634.0,2633.9,2.25844546]
[1729599982942,1.66097792,2634.0,2633.9,1.50184546]
[1729599983244,3.79679,2633.8,2633.4,0.758]
[1729599983547,3.79679,2633.8,2633.2,7.34457226]
[1729599983548,1.66097792,2633.5,2633.2,7.34457226]
[1729599983752,1.66097792,2633.5,2633.3,8.71139883]
[1729599983959,3.79587,2634.5,2633.5,4.55518]
[1729599984251,1.66097792,2633.9,2633.7,3.79685]
[1729599984410,0.7815,2634.2,2633.7,8.33543644]
[1729599984411,4.57774,2634.2,2633.7,8.33543644]
[1729599984761,1.66097792,2634.0,2633.8,0.0922446]
[1729599984904,1.66097792,2633.9,2633.7,8.33543644]
[1729599985110,1.66097792,2633.9,2633.8,0.83354364]
[1729599985437,3.79618,2634.3,2633.9,4.59608]
[1729599985652,1.66097792,2634.1,2633.9,4.59608]
[1729599985852,1.66097792,2634.1,2633.9,4.67200362]
[1729599986310,1.66097792,2634.1,2633.9,4.6720029]
[1729599986652,1.66097792,2634.1,2633.9,5.6764162]
[1729599987252,1.66097792,2634.1,2633.9,5.6004933]
[1729599987411,1.66097792,2634.0,2633.9,5.67641577]
[1729599987753,1.66097792,2634.1,2633.9,5.67641577]
[1729599988852,1.66097792,2634.2,2633.9,5.67641577]
[1729599989055,1.66097792,2634.3,2634.0,4.44746594]
[1729599989772,1.66097792,2634.2,2634.0,4.44746594]
[1729599990115,1.66097792,2634.1,2634.0,0.65099594]
[1729599990437,1.66097792,2634.2,2634.0,4.44749594]
[1729599990613,1.66097792,2634.2,2634.1,0.52469959]
[1729599991713,1.66097792,2634.2,2634.0,0.65099594]
[1729599992138,1.66097792,2634.2,2634.0,4.44747594]
[1729599992846,3.79596,2634.4,2634.0,4.44747594]
[1729599992847,1.66097792,2634.1,2634.0,1.20099594]
[1729599993050,1.66097792,2634.1,2634.0,4.99748594]
[1729599993414,1.66097792,2634.2,2634.0,4.99748594]
[1729599993751,3.79596,2634.4,2634.1,0.57969859]
[1729599993913,1.66097792,2634.2,2634.1,0.57969859]
[1729599998541,1.66097792,2634.3,2634.1,4.37596859]
[1729599998741,3.79546,2634.8,2634.5,3.79567]
[1729599998742,1.66097792,2634.8,2634.5,3.79567]
[1729599999069,0.8316,2634.9,2634.5,4.57137]
[1729599999070,1.66097792,2634.7,2634.5,4.57137]
[1729599999235,3.79506,2635.0,2634.5,4.57137]
[1729599999430,3.79506,2635.0,2634.6,3.79564]
[1729599999636,3.79506,2635.0,2634.7,0.07590102]
[1729599999882,1.66097792,2634.8,2634.7,0.16747727]
[1729600000182,1.66097792,2634.8,2634.7,0.09157625]
[1729600001484,5.45632792,2634.8,2634.7,0.09157625]
[1729600001653,6.28512792,2634.8,2634.7,0.09157625]
[1729600001850,7.29316271,2634.8,2634.7,0.09157625]
[1729600002051,3.79549,2634.7,2634.1,11.18768413]
[1729600002258,1.66097792,2634.2,2634.1,0.8095]
[1729600002792,1.66097792,2634.3,2634.1,4.60585]
[1729600003480,1.66097792,2634.4,2634.2,3.87212631]
[1729600003637,1.66097792,2634.4,2634.2,4.99943818]
[1729600003838,1.66097792,2634.4,2634.2,1.20322818]
[1729600004038,1.66097792,2634.4,2634.2,0.07591631]
[1729600004639,1.66097792,2634.5,2634.3,4.34607]
[1729600004839,1.66097792,2634.4,2634.3,4.34607]
[1729600005453,1.66097792,2634.5,2634.3,4.34607]
[1729600005648,1.66097792,2634.5,2634.3,8.34607]
[1729600005854,1.66097792,2634.5,2634.3,6.12470524]
[1729600006065,1.66097792,2634.5,2634.3,9.92076524]
[1729600006484,1.66097792,2634.5,2634.3,6.12470524]
[1729600006642,1.66097792,2634.5,2634.3,9.92074524]
[1729600007360,1.66097792,2634.6,2634.3,9.92074524]
[1729600007886,1.66097792,2634.5,2634.3,6.12470524]
[1729600008045,1.66097792,2634.5,2634.3,9.92076524]
[1729600008986,1.66097792,2634.4,2634.3,6.12470524]
[1729600009201,1.66097792,2634.4,2634.3,4.55]
[1729600009794,1.66097792,2634.4,2634.3,4.0]
[1729600011781,1.66097792,2634.6,2634.3,7.87198395]
[1729600011978,1.66097792,2634.6,2634.4,0.07591071]
[1729600012152,1.66097792,2634.6,2634.4,4.07591071]